bitfinex/quotes_SOLUSD_20241210
["timestamp","ask_amount","ask_price","bid_price","bid_amount"]
[1733861052366,22.80731272,212.21,212.11,0.12549]
[1733861053278,20.0,212.21,212.13,0.37647]
[1733861053771,2.84354706,212.25,212.16,0.12549]
[1733861055967,20.0,212.26,212.17,0.25098]
[1733861056176,2.79459686,212.29,212.18,0.12549]
[1733861056384,6.2089,212.33,212.2,0.12549]
[1733861056574,6.2089,212.33,212.21,0.25098]
[1733861056797,6.2089,212.33,212.22,0.12549]
[1733861056971,1.92465812,212.35,212.24,0.12549]
[1733861057173,7.7461,212.39,212.26,0.12549]
[1733861057763,7.7461,212.39,212.23,23.54531262]
[1733861057764,2.84150444,212.36,212.22,0.12549]
[1733861057960,6.25440692,212.35,212.22,0.12549]
[1733861058472,20.0,212.32,212.22,0.12549]
[1733861059579,20.0,212.3,212.22,0.12549]
[1733861059786,20.0,212.3,212.17,0.25098]
[1733861060089,20.0,212.28,212.16,7.7004]
[1733861060270,6.25440692,212.35,212.11,6.1239]
[1733861060271,20.0,212.24,212.11,6.1239]
[1733861060472,20.0,212.24,212.05,29.66921262]
[1733861060473,35.0,212.24,212.05,29.66921262]
[1733861060686,20.0,212.22,212.05,29.66921262]
[1733861060888,20.0,212.21,212.05,29.66921262]
[1733861061185,15.0,212.24,212.05,6.1239]
[1733861061186,20.0,212.2,212.05,6.1239]
[1733861061868,20.0,212.19,212.06,0.25098]
[1733861062279,20.0,212.19,212.07,0.12549]
[1733861062587,20.0,212.21,212.07,0.12549]
[1733861062891,32.05764775,212.27,212.11,0.12549]
[1733861062892,20.0,212.23,212.11,0.12549]
[1733861064378,20.0,212.2,212.06,0.70707104]
[1733861064579,20.0,212.18,212.05,6.1239]
[1733861064786,20.0,212.18,212.06,0.25098]
[1733861065299,20.0,212.2,212.06,0.12549]
[1733861065470,20.0,212.19,212.06,0.12549]
[1733861065666,20.0,212.19,212.08,0.25098]
[1733861066492,20.0,212.19,212.07,0.25098]
[1733861066669,20.0,212.19,212.08,0.12549]
[1733861068187,1.87768765,212.24,212.11,0.12549]
[1733861068388,7.7461,212.27,212.12,0.12549]
[1733861068904,9.67497695,212.27,212.12,0.12549]
[1733861069208,6.26100635,212.29,212.16,0.12549]
[1733861069417,21.2569,212.32,212.16,0.12549]
[1733861069698,2.82711214,212.26,212.16,0.12549]
[1733861071702,22.82711214,212.26,212.16,0.12549]
[1733861072324,20.0,212.24,212.08,23.54531262]
[1733861072609,20.0,212.24,212.09,0.37647]
[1733861073383,20.0,212.24,212.11,0.37647]
[1733861073597,2.82711214,212.26,212.14,0.12549]
[1733861074080,20.0,212.25,212.14,0.12549]
[1733861074281,2.82711214,212.26,212.14,0.12549]
[1733861074507,20.0,212.25,212.14,0.12549]
[1733861074880,2.82711214,212.26,212.14,0.12549]
[1733861075814,14.45721582,212.32,212.16,0.12549]
[1733861076017,14.45721582,212.32,212.18,0.12549]
[1733861076874,2.77157816,212.27,212.18,0.12549]
[1733861077011,22.77157816,212.27,212.18,0.12549]
[1733861077188,22.77157816,212.27,212.15,7.7463]
[1733861077627,22.77157816,212.27,212.16,0.37647]
[1733861077920,20.0,212.25,212.16,0.37647]
[1733861078418,19.5,212.25,212.16,0.37647]
[1733861080119,29.98638259,212.24,212.1,7.7463]
[1733861080316,20.0,212.21,212.1,7.7463]
[1733861080490,20.0,212.17,212.05,6.1271]
[1733861080732,20.0,212.15,212.05,6.1271]
[1733861080932,20.0,212.15,212.04,1.6192]
[1733861080933,20.0,212.13,212.04,1.6192]
[1733861081129,20.0,212.13,212.0,6.1271]
[1733861081369,20.0,212.11,212.0,6.1271]
[1733861081872,20.0,212.11,212.01,0.25098]
[1733861082031,20.0,212.11,212.0,6.1271]
[1733861082539,20.0,212.08,211.99,1.6192]
[1733861082928,20.0,212.08,212.0,0.25098]
[1733861083738,20.0,212.08,211.99,1.6192]
[1733861084341,20.0,212.08,212.0,0.25098]
[1733861086339,20.0,212.08,211.95,6.1271]
[1733861086554,20.0,212.05,211.96,0.12549]
[1733861086941,20.0,212.05,211.96,0.37647]
[1733861087142,20.0,212.06,211.96,0.37647]
[1733861087649,20.0,212.07,211.96,0.37647]
[1733861087952,14.98638259,212.14,211.96,24.62933494]
[1733861088364,2.82616487,212.08,211.96,24.62933494]
[1733861089957,2.77776688,212.15,212.0,0.25098]
[1733861090165,15.0,212.18,212.03,0.37647]
[1733861090842,0.42553192,212.17,212.03,23.92178262]
[1733861091043,0.42553192,212.17,212.03,0.37647]
[1733861091343,0.42553192,212.17,212.03,23.92178262]
[1733861091549,0.42553192,212.17,212.06,0.12549]
[1733861093067,2.76651154,212.15,212.06,0.12549]
[1733861093365,0.42553192,212.14,212.06,0.12549]
[1733861095661,20.42553192,212.14,212.02,6.1271]
[1733861096261,20.42553192,212.14,212.03,0.25098]
[1733861097149,20.42553192,212.14,212.04,0.12549]
[1733861099148,20.42553192,212.14,211.98,6.5809]
[1733861099149,20.0,212.08,211.98,6.5809]
[1733861099480,0.42553192,212.07,211.98,6.5809]
[1733861100179,0.42553192,212.07,211.99,0.25098]
[1733861100487,0.42553192,212.07,211.98,6.5809]
[1733861100670,20.0,212.06,211.93,6.5809]
[1733861100872,20.0,212.05,211.93,6.5809]
[1733861101208,20.0,212.03,211.93,6.5809]
[1733861101551,0.42553192,212.02,211.94,0.25098]
[1733861102644,0.42553192,212.02,211.95,0.12549]
[1733861103572,20.0,212.01,211.94,0.25098]
[1733861103781,20.0,212.01,211.93,6.5809]
[1733861104064,0.42553192,212.0,211.93,6.5809]
[1733861104860,0.42553192,212.0,211.94,0.12549]
[1733861105072,0.42553192,212.0,211.94,0.25098]
[1733861105274,0.42553192,212.0,211.95,0.12549]
[1733861105577,0.42553192,212.0,211.96,0.37647]
[1733861105875,0.42553192,212.0,211.96,23.92178262]
[1733861106053,0.42553192,212.0,211.98,0.37647]
[1733861107875,0.42553192,212.0,211.98,23.92178262]
[1733861108051,0.42553192,212.0,211.98,0.37647]
[1733861109063,0.42553192,212.0,211.93,6.5809]
[1733861109971,0.42553192,212.0,211.94,0.25098]
[1733861110873,0.42553192,212.0,211.95,0.12549]
[1733861111300,0.42553192,212.0,211.93,6.5809]
[1733861111980,0.42553192,212.0,211.94,0.25098]
[1733861113078,0.42553192,212.0,211.93,0.12549]
[1733861113262,0.42553192,212.0,211.93,0.37647]
[1733861113775,0.42553192,212.0,211.88,6.1589]
[1733861113970,20.0,211.98,211.88,6.1589]
[1733861114166,20.0,211.98,211.89,0.25098]
[1733861114383,0.42553192,211.97,211.89,0.25098]
[1733861116078,20.0,211.96,211.86,1.5517]
[1733861116298,20.0,211.94,211.85,0.1727736]
[1733861116458,20.0,211.91,211.85,0.1727736]
[1733861116662,34.98638259,211.93,211.85,0.1727736]
[1733861116663,20.0,211.9,211.85,0.1727736]
[1733861116858,20.0,211.88,211.85,0.1727736]
[1733861117063,20.0,211.86,211.85,7.36e-05]
[1733861117271,20.0,211.84,211.72,6.1589]
[1733861117660,0.42553192,211.83,211.72,6.1589]
[1733861118183,0.42553192,211.83,211.73,0.25098]
[1733861118375,0.42553192,211.83,211.72,6.1589]
[1733861118687,0.42553192,211.83,211.7,1.5517]
[1733861118864,20.0,211.8,211.67,6.1589]
[1733861119270,20.0,211.76,211.65,1.5517]
[1733861119500,20.0,211.76,211.66,0.25098]
[1733861119793,0.42553192,211.75,211.65,1.5517]
[1733861120385,0.42553192,211.75,211.65,25.80550275]
[1733861120680,0.42553192,211.75,211.66,0.25098]
[1733861120895,0.42553192,211.75,211.67,0.70839263]
[1733861121061,0.42553192,211.75,211.69,23.54531262]
[1733861121263,0.42553192,211.75,211.74,0.37647]
[1733861122370,0.42553192,211.75,211.74,48.40685555]
[1733861122572,0.42553192,211.75,211.74,49.95855555]
[1733861124381,6.4802,211.94,211.75,0.12549]
[1733861124574,6.4802,211.94,211.78,0.12549]
[1733861125482,2.84757875,211.9,211.74,1.5517]
[1733861125790,20.0,211.88,211.74,1.5517]
[1733861126087,20.0,211.88,211.75,0.9591026]
[1733861126276,20.0,211.88,211.77,0.25098]
[1733861126474,20.0,211.88,211.79,0.25098]
[1733861126674,22.84757875,211.9,211.8,0.12549]
[1733861126886,2.84757875,211.9,211.8,0.12549]
[1733861127275,20.0,211.91,211.8,0.83348234]
[1733861127483,20.0,211.91,211.82,0.12549]
[1733861127793,3.62574215,211.96,211.85,0.12549]
[1733861127985,6.4802,211.99,211.85,0.12549]
[1733861128377,2.76356665,211.94,211.85,0.12549]
[1733861132393,20.0,211.93,211.84,0.12549]
[1733861132687,2.76356665,211.94,211.84,0.12549]
[1733861132889,20.0,211.93,211.78,6.014]
[1733861133092,20.0,211.93,211.79,0.25098]
[1733861133273,20.0,211.92,211.79,0.25098]
[1733861134073,20.0,211.93,211.8,0.12549]
[1733861134471,2.76356665,211.94,211.83,0.12549]
[1733861134774,2.6352642,211.98,211.85,0.12549]
[1733861135096,2.87338352,211.95,211.85,0.12549]
[1733861136772,22.87338352,211.95,211.85,0.12549]
[1733861137590,22.87338352,211.95,211.84,1.575]
[1733861138377,22.87338352,211.95,211.85,0.25098]
[1733861139192,2.87338352,211.95,211.85,0.25098]
[1733861139398,22.87338352,211.95,211.85,0.25098]
[1733861139691,20.0,211.93,211.8,0.12549]
[1733861140486,20.0,211.92,211.8,0.37647]
[1733861141597,20.0,211.91,211.8,0.37647]
[1733861141891,20.0,211.91,211.8,0.25098]
[1733861142070,29.98638259,211.94,211.79,1.575]
[1733861142071,20.0,211.89,211.79,1.575]
[1733861142474,20.0,211.89,211.8,0.12549]
[1733861143087,35.0,211.89,211.73,8.0222]
[1733861143283,20.0,211.87,211.74,0.25098]
[1733861143494,20.0,211.86,211.74,0.25098]
[1733861144196,20.0,211.87,211.74,0.25098]
[1733861144370,20.0,211.87,211.75,0.12549]
[1733861145096,1.86770332,211.94,211.8,0.25098]
[1733861145294,4.41958352,211.95,211.81,0.12549]
[1733861146476,4.41958352,211.95,211.83,23.67080262]
[1733861146477,2.87338352,211.95,211.83,23.67080262]
[1733861146691,2.87338352,211.95,211.87,0.12549]
[1733861147112,6.26100635,212.03,211.87,0.12549]
[1733861147323,2.76546234,211.98,211.89,0.12549]
[1733861147777,6.26100635,212.03,211.89,0.12549]
[1733861148178,8.20271779,212.03,211.89,0.12549]
[1733861149207,20.0,212.0,211.89,0.12549]
[1733861149577,2.87824052,211.99,211.89,0.12549]
[1733861150695,16.5844,212.05,211.71,37.32007204]
[1733861150696,1.88627194,212.06,211.94,0.12549]
[1733861150907,0.42553191,211.98,211.94,0.12549]
[1733861151110,0.42553191,211.98,211.96,0.12549]
[1733861153281,0.42553191,211.98,211.92,1.563]
[1733861153902,0.42553191,211.98,211.93,0.25098]
[1733861154500,0.42553191,211.98,211.93,0.12549]
[1733861155100,0.42553191,211.98,211.86,1.563]
[1733861155993,0.42553191,211.98,211.91,0.12549]
[1733861156391,0.42553191,211.98,211.86,1.563]
[1733861156789,20.0,211.97,211.86,1.563]
[1733861157208,0.42553191,211.96,211.85,6.0844]
[1733861157402,20.0,211.95,211.8,7.6474]
[1733861157602,20.0,211.93,211.8,7.6474]
[1733861157814,20.0,211.92,211.8,7.6474]
[1733861158024,20.0,211.88,211.75,7.6474]
[1733861158316,20.42553191,211.87,211.75,7.6474]
[1733861158895,0.42553191,211.87,211.76,0.25098]
[1733861159092,0.42553191,211.87,211.75,7.6474]
[1733861159447,20.0,211.85,211.75,7.6474]
[1733861159608,20.0,211.85,211.76,0.12549]
[1733861159810,0.42553191,211.84,211.76,0.37647]
[1733861161302,0.42553191,211.84,211.78,23.92178262]
[1733861161502,0.42553191,211.84,211.81,0.12549]
[1733861161708,0.42553191,211.84,211.83,0.12549]
[1733861162510,0.42553191,211.84,211.83,1.08429335]
[1733861162707,0.42553191,211.84,211.83,0.37647]
[1733861163220,0.42553191,211.84,211.83,23.92178262]
[1733861163908,0.42553191,211.84,211.83,0.37647]
[1733861164108,0.42553191,211.84,211.83,23.92178262]
[1733861164303,0.42553191,211.84,211.83,24.62962195]
[1733861164612,0.42553191,211.84,211.83,1.08430933]
[1733861164919,0.42553191,211.84,211.75,7.6474]
[1733861165221,0.42553191,211.84,211.64,7.35081237]
[1733861165222,0.42553191,211.84,211.68,1.6315]
[1733861165409,0.42553191,211.84,211.69,7.40419679]
[1733861165605,20.0,211.83,211.69,7.40419679]
[1733861165815,20.0,211.83,211.7,0.25098]
[1733861166026,0.42553191,211.82,211.72,23.54531262]
[1733861166202,0.42553191,211.82,211.74,23.54531262]
[1733861166511,0.42553191,211.82,211.75,0.25098]
[1733861166706,0.42553191,211.82,211.76,0.12549]
[1733861167507,0.42553191,211.82,211.69,6.5404]
[1733861167896,20.42553191,211.82,211.69,6.5404]
[1733861168410,20.42553191,211.82,211.7,0.25098]
[1733861168722,0.42553191,211.82,211.74,0.25098]
[1733861169317,0.42553191,211.82,211.75,0.12549]
[1733861170617,0.42553191,211.82,211.7,0.12549]
[1733861170816,0.42553191,211.82,211.7,0.25098]
[1733861171400,0.42553191,211.82,211.72,0.12549]
[1733861171618,0.42553191,211.82,211.73,0.12549]
[1733861172521,0.42553191,211.82,211.75,0.12549]
[1733861172821,0.42553191,211.82,211.69,6.5404]
[1733861172822,6.2071,211.81,211.63,8.4055141]
[1733861173026,25.09844581,211.81,211.63,8.4055141]
[1733861173225,14.98638259,211.77,211.63,0.5841141]
[1733861173401,15.0,211.78,211.63,0.5841141]
[1733861173606,20.0,211.74,211.64,0.25098]
[1733861174002,0.42553191,211.73,211.64,0.25098]
[1733861174716,0.42553191,211.73,211.63,0.5841141]
[1733861176202,0.42553191,211.73,211.64,0.25098]
[1733861176407,0.42553191,211.73,211.66,0.25098]
[1733861176605,0.42553191,211.73,211.65,0.12549]
[1733861176606,0.42553191,211.73,211.7,0.25098]
[1733861177341,0.42553191,211.73,211.69,0.12549]
[1733861177699,0.42553191,211.73,211.65,0.25098]
[1733861177902,0.42553191,211.73,211.66,0.12549]
[1733861178109,0.42553191,211.73,211.64,0.12549]
[1733861178511,0.42553191,211.73,211.64,0.37647]
[1733861180311,0.42553191,211.73,211.67,0.12549]
[1733861181008,0.42553191,211.73,211.68,0.25098]
[1733861181209,0.42553191,211.73,211.69,0.12549]
[1733861181822,0.42553191,211.73,211.7,0.12549]
[1733861182024,0.42553191,211.73,211.64,0.12549]
[1733861182229,0.42553191,211.73,211.64,23.67080262]
[1733861182523,0.42553191,211.73,211.65,0.12549]
[1733861182724,0.42553191,211.73,211.66,0.12549]
[1733861183927,0.42553191,211.73,211.67,0.12549]
[1733861184109,0.42553191,211.73,211.69,0.12549]
[1733861184929,0.42553191,211.73,211.71,0.12549]
[1733861185549,0.42553191,211.73,211.72,23.92178262]
[1733861185835,0.42553191,211.73,211.72,24.63007931]
[1733861186214,0.30013191,211.73,211.72,24.63007931]
[1733861187234,0.30013191,211.73,211.72,0.12549]
[1733861187744,0.30013191,211.73,211.72,23.79629262]
[1733861187929,0.30013191,211.73,211.72,23.92178262]
[1733861188240,0.30013191,211.73,211.72,23.67080262]
[1733861188419,0.30013191,211.73,211.72,23.92178262]
[1733861188807,6.043,211.91,211.73,0.37647]
[1733861189119,3.43428345,211.95,211.81,23.67080262]
[1733861189321,1.5435,211.95,211.84,23.54531262]
[1733861189520,6.516,211.96,211.85,23.54531262]
[1733861189838,6.516,211.96,211.85,0.12549]
[1733861190213,2.89479332,211.95,211.85,0.12549]
[1733861190733,1.5435,212.01,211.85,0.12549]
[1733861190734,8.0595,212.01,211.87,0.25098]
[1733861191436,2.90046217,212.0,211.88,0.25098]
[1733861191940,8.0595,212.07,211.92,23.79629262]
[1733861192132,8.0595,212.07,211.95,23.79629262]
[1733861192825,6.26100635,212.15,212.0,23.79629262]
[1733861193029,8.0595,212.24,212.09,23.54531262]
[1733861193235,8.0595,212.24,212.1,0.12549]
[1733861193433,8.0595,212.24,212.09,23.54531262]
[1733861193635,0.25098,212.23,212.07,23.54531262]
[1733861193850,0.25098,212.2,212.05,23.54531262]
[1733861194022,0.25098,212.2,212.03,24.25228503]
[1733861194227,15.23736259,212.2,211.99,23.54531262]
[1733861194426,0.12549,212.19,211.99,23.54531262]
[1733861194646,0.12549,212.19,212.0,0.25098]
[1733861194852,0.12549,212.16,211.97,23.54531262]
[1733861195151,0.12549,212.16,211.98,0.12549]
[1733861195361,0.12549,212.13,211.96,6.1052]
[1733861195528,0.12549,212.08,211.92,38.20751442]
[1733861195727,0.12549,212.08,211.91,38.20751442]
[1733861195952,20.37647,212.08,211.9,6.1052]
[1733861196128,20.37647,212.05,211.86,38.20751442]
[1733861196332,20.37647,212.05,211.87,0.25098]
[1733861196766,0.12549,212.06,211.91,0.12549]
[1733861197050,0.37647,212.07,211.91,38.33300442]
[1733861197248,0.25098,212.05,211.87,38.91511738]
[1733861197546,0.25098,212.05,211.83,6.1052]
[1733861197547,0.12549,212.02,211.84,38.20751442]
[1733861197749,0.12549,212.02,211.83,6.81291909]
[1733861197750,0.12549,212.02,211.86,38.20751442]
[1733861197926,0.12549,212.02,211.87,38.20751442]
[1733861198340,0.12549,212.0,211.86,38.20751442]
[1733861198530,0.12549,212.03,211.88,38.20751442]
[1733861198742,0.25098,212.03,211.88,38.20751442]
[1733861199048,0.25098,212.03,211.87,0.25098]
[1733861200751,8.49552053,212.1,211.86,38.20751442]
[1733861200752,0.12549,212.01,211.86,38.20751442]
[1733861200955,0.12549,212.01,211.87,0.25098]
[1733861201563,2.87158332,212.02,211.88,38.91520401]
[1733861201930,23.776884,212.01,211.88,38.20751442]
[1733861202230,23.776884,211.97,211.9,38.20751442]
[1733861202744,8.0595,212.12,211.92,38.20751442]
[1733861203148,8.0595,212.12,211.96,38.20751442]
[1733861203352,8.0595,212.12,211.98,38.20751442]
[1733861204553,2.7908685,212.09,211.96,38.20751442]
[1733861204742,23.776884,212.08,211.96,38.20751442]
[1733861205048,2.7908685,212.09,211.97,0.25098]
[1733861205840,22.7908685,212.09,211.97,0.25098]
[1733861206555,2.7908685,212.09,211.97,0.25098]
[1733861206736,2.7908685,212.09,211.98,38.20751442]
[1733861207346,2.7908685,212.09,211.97,0.25098]
[1733861207558,2.7908685,212.09,211.94,38.33300442]
[1733861207859,22.7908685,212.09,211.95,0.25098]
[1733861208154,20.0,212.05,211.95,0.25098]
[1733861208358,23.776884,212.04,211.99,0.25098]
[1733861208843,23.776884,212.04,211.96,38.20751442]
[1733861209166,20.0,212.01,211.96,38.20751442]
[1733861209338,23.776884,212.0,211.94,38.20751442]
[1733861210461,23.776884,212.0,211.96,38.20751442]
[1733861210645,23.776884,212.0,211.97,0.25098]
[1733861210955,0.42553192,211.99,211.98,38.58398442]
[1733861211166,0.42553192,211.99,211.98,0.37647]
[1733861211332,0.42553192,211.99,211.98,15.37647]
[1733861212343,8.0595,212.17,212.05,0.12549]
[1733861212560,8.0595,212.17,212.08,38.20751442]
[1733861212737,1.5435,212.17,212.08,38.20751442]
[1733861213058,1.5435,212.23,212.16,38.20751442]
[1733861213242,6.516,212.27,212.18,38.20751442]
[1733861213443,6.516,212.27,212.19,0.83217896]
[1733861213648,1.5435,212.3,212.19,0.83217896]
[1733861214143,1.5435,212.3,212.21,0.12549]
[1733861214350,1.5435,212.3,212.22,38.20751442]
[1733861214951,1.5435,212.3,212.21,0.70659608]
[1733861214952,1.5435,212.3,212.21,0.12549]
[1733861215455,20.0,212.29,212.21,0.12549]
[1733861216364,20.0,212.29,212.23,0.12549]
[1733861216544,20.0,212.29,212.2,38.20751442]
[1733861216739,20.0,212.29,212.24,38.20751442]
[1733861216942,7.1001141,212.38,212.24,38.20751442]
[1733861217152,22.89724377,212.35,212.23,0.70653597]
[1733861217352,22.89724377,212.35,212.2,38.20751442]
[1733861217661,0.12549,212.34,212.19,0.12549]
[1733861217862,0.12549,212.34,212.19,0.25098]
[1733861218061,0.12549,212.34,212.2,38.20751442]
[1733861218443,23.776884,212.3,212.21,0.25098]
[1733861218644,20.0,212.27,212.22,0.70659256]
[1733861218861,23.776884,212.26,212.22,0.70659256]
[1733861219061,23.776884,212.26,212.21,0.25098]
[1733861219252,23.776884,212.26,212.18,38.20751442]
[1733861220245,20.0,212.23,212.16,38.20751442]
[1733861220448,23.776884,212.22,212.14,38.20751442]
[1733861220651,23.776884,212.22,212.09,0.70676567]
[1733861220652,23.776884,212.22,212.15,38.20751442]
[1733861221054,23.776884,212.22,212.17,38.20751442]
[1733861221259,23.776884,212.22,212.18,38.33300442]
[1733861221448,20.0,212.31,212.19,38.20751442]
[1733861221652,20.0,212.27,212.21,0.12549]
[1733861221991,2.89724377,212.35,212.24,38.45849442]
[1733861222284,7.1001141,212.38,212.28,38.20751442]
[1733861223064,7.1001141,212.38,212.24,38.20751442]
[1733861223280,7.1001141,212.38,212.23,23.4549714]
[1733861223499,9.86751303,212.38,212.25,23.4549714]
[1733861223775,9.86751303,212.38,212.25,24.16143659]
[1733861224190,0.5841141,212.38,212.3,0.25098]
[1733861224356,0.5841141,212.38,212.31,23.4549714]
[1733861224558,0.5841141,212.38,212.32,0.70621285]
[1733861224784,0.5841141,212.38,212.31,23.4549714]
[1733861225291,0.5841141,212.38,212.28,0.12549]
[1733861225681,0.5841141,212.38,212.28,23.7059514]
[1733861226279,0.5841141,212.38,212.24,23.4549714]
[1733861226456,0.5841141,212.38,212.23,23.4549714]
[1733861226656,0.37647,212.37,212.22,23.4549714]
[1733861226880,0.37647,212.37,212.21,23.4549714]
[1733861227062,0.37647,212.37,212.2,30.66507789]
[1733861227379,0.37647,212.37,212.2,0.70650649]
[1733861227582,0.37647,212.37,212.17,23.4549714]
[1733861227583,0.12549,212.34,212.17,23.4549714]
[1733861227897,20.0,212.33,212.17,23.4549714]
[1733861228556,20.0,212.33,212.2,0.25098]
[1733861228881,6.0281,212.36,212.25,23.4549714]
[1733861229082,6.0281,212.36,212.27,23.4549714]
[1733861229288,0.5841141,212.38,212.29,38.09987268]
[1733861229465,0.5841141,212.38,212.26,38.09987268]
[1733861229669,0.5841141,212.38,212.24,38.09987268]
[1733861229860,0.5841141,212.38,212.25,0.70648044]
[1733861230082,0.25098,212.37,212.23,0.12549]
[1733861230260,0.25098,212.37,212.2,0.70649984]
[1733861230261,0.25098,212.37,212.2,38.09987268]
[1733861230576,0.12549,212.36,212.22,38.09987268]
[1733861231165,0.25098,212.37,212.23,38.80644358]
[1733861231361,0.12549,212.36,212.19,38.09987268]
[1733861231567,0.25098,212.35,212.18,38.09987268]
[1733861231776,0.25098,212.35,212.2,38.22536268]
[1733861231973,0.5841141,212.38,212.26,38.09987268]
[1733861232291,0.5841141,212.38,212.27,0.70643639]
[1733861233294,20.5841141,212.38,212.27,0.70643639]
[1733861233471,0.5841141,212.38,212.28,0.25098]
[1733861233671,0.5841141,212.38,212.29,0.70637911]
[1733861234598,0.5841141,212.38,212.25,38.09987268]
[1733861234799,20.5841141,212.38,212.26,0.83190067]
[1733861234976,20.5841141,212.38,212.25,38.09987268]
[1733861235289,20.5841141,212.38,212.23,0.12549]
[1733861235617,0.25098,212.37,212.22,0.70642204]
[1733861235902,0.12549,212.36,212.2,0.12549]
[1733861236062,0.12549,212.36,212.19,0.70661986]
[1733861236263,1.5268,212.3,212.17,0.70665891]
[1733861236687,1.5268,212.3,212.14,38.09987268]
[1733861236870,1.5268,212.3,212.15,0.7068135]
[1733861237076,1.5268,212.3,212.15,38.80668618]
[1733861237289,1.5268,212.3,212.16,38.09987268]
[1733861237693,1.5268,212.3,212.15,38.09987268]
[1733861238290,1.5268,212.3,212.13,38.09987268]
[1733861238592,0.25098,212.29,212.12,38.09987268]
[1733861238776,0.25098,212.29,212.13,0.70684523]
[1733861239303,0.25098,212.29,212.14,0.25098]
[1733861239713,4.30149642,212.3,212.14,0.25098]
[1733861239898,4.30149642,212.3,212.1,6.3408]
[1733861239899,1.5268,212.3,212.16,0.25098]
[1733861240083,1.5268,212.3,212.18,38.47634268]
[1733861240289,1.5268,212.3,212.18,0.37647]
[1733861240994,1.5268,212.3,212.21,0.12549]
[1733861241199,1.5268,212.3,212.22,38.35085268]
[1733861241505,6.2671,212.34,212.24,0.25098]
[1733861241689,6.2671,212.34,212.24,38.35085268]
[1733861241875,6.2671,212.34,212.25,0.83194205]
[1733861243386,20.0,212.31,212.25,0.83194205]
[1733861244386,20.0,212.31,212.2,38.09987268]
[1733861244590,20.0,212.31,212.22,0.12549]
[1733861244799,20.0,212.31,212.23,0.706562]
[1733861245106,20.0,212.31,212.24,38.47634268]
[1733861245404,20.0,212.31,212.25,0.70644251]
[1733861245783,0.5841141,212.38,212.29,0.25098]
[1733861245988,0.5841141,212.38,212.31,0.25098]
[1733861246193,0.5841141,212.38,212.32,0.70621089]
[1733861246395,0.5841141,212.38,212.33,0.25098]
[1733861246789,0.5841141,212.38,212.37,0.37647]
[1733861246984,0.5841141,212.38,212.37,1.0824523]
[1733861248380,0.5841141,212.38,212.37,16.0824523]
[1733861248587,0.5841141,212.38,212.37,313.0824523]
[1733861248881,0.5841141,212.38,212.37,342.37647]
[1733861249086,0.3333141,212.38,212.37,30.37647]
[1733861249288,1.6487,212.56,212.37,30.37647]
[1733861249289,1.6487,212.56,212.42,0.25098]
[1733861249591,1.6487,212.56,212.49,0.25098]
[1733861249894,1.6487,212.56,212.49,0.95663415]
[1733861251006,1.6487,212.56,212.46,23.40371394]
[1733861251201,20.0,212.54,212.42,24.10942948]
[1733861251522,20.0,212.54,212.4,23.40371394]
[1733861251811,20.0,212.54,212.38,23.40371394]
[1733861252021,20.0,212.54,212.39,0.70595295]
[1733861252305,20.0,212.54,212.4,0.25098]
[1733861253213,20.0,212.54,212.41,0.12549]
[1733861253985,20.0,212.54,212.4,0.25098]
[1733861254991,20.0,212.54,212.41,0.12549]
[1733861255212,1.6487,212.56,212.43,0.12549]
[1733861255412,1.6487,212.56,212.44,0.25098]
[1733861256500,20.0,212.54,212.41,38.05570975]
[1733861256695,20.0,212.54,212.4,0.12549]
[1733861256892,20.0,212.54,212.4,0.83142154]
[1733861257197,20.0,212.54,212.41,0.25098]
[1733861257398,20.37647,212.53,212.36,38.05570975]
[1733861257605,20.37647,212.53,212.33,38.05570975]
[1733861257606,20.0,212.51,212.33,38.05570975]
[1733861257805,20.0,212.51,212.34,38.76180138]
[1733861258114,20.0,212.47,212.34,38.76180138]
[1733861258609,20.0,212.47,212.37,0.25098]
[1733861258809,20.0,212.47,212.37,0.83152672]